fUSD/lending_fUSD_20250515
["ID","MTS","AMOUNT","RATE_DAILY","PERIOD"]
[361118628,1747277448148,-400.0,0.00011807,2]
[361118629,1747277448158,-404.39844892,0.00011807,2]
[361118630,1747277448168,-407.20763818,0.00011807,2]
[361118631,1747277448178,-249.58783737,0.00011807,2]
[361118632,1747277448188,-400.0,0.00011807,2]
[361118633,1747277448197,-400.0,0.00011807,2]
[361118634,1747277448206,-747.49,0.00011807,2]
[361118635,1747277448215,-485.11,0.00011807,2]
[361118636,1747277448225,-502.01031967,0.00011807,2]
[361118637,1747277448234,-407.21519421,0.00011807,2]
[361118638,1747277448243,-401.25627162,0.00011807,2]
[361118639,1747277448252,-400.0,0.00011807,2]
[361118640,1747277448262,-400.0,0.00011807,2]
[361118641,1747277448271,-400.0,0.00011807,2]
[361118642,1747277448281,-401.16830017,0.00011807,2]
[361118643,1747277448291,-477.63799565,0.00011807,2]
[361118644,1747277448300,-400.0,0.00011807,2]
[361118645,1747277448310,-400.0,0.00011807,2]
[361118646,1747277448319,-400.0,0.00011807,2]
[361118647,1747277448329,-400.0,0.00011807,2]
[361118648,1747277448339,-400.0,0.00011807,2]
[361118649,1747277448349,-403.45233697,0.00011807,2]
[361118650,1747277448359,-400.0,0.00011807,2]
[361118651,1747277448370,-400.0,0.00011807,2]
[361118652,1747277448385,-443.54,0.00011807,2]
[361118653,1747277448394,-400.0,0.00011807,2]
[361118654,1747277448404,-410.19082114,0.00011807,2]
[361118655,1747277448415,-401.41547858,0.00011807,2]
[361118656,1747277448426,-405.87979803,0.00011807,2]
[361118657,1747277448435,-400.0,0.00011807,2]
[361118658,1747277448445,-506.12769622,0.00011807,2]
[361118659,1747277448455,-419.36580932,0.00011807,2]
[361118660,1747277448465,-151.0,0.00011807,2]
[361118661,1747277448474,-412.71315308,0.00011807,2]
[361118662,1747277448484,-151.0,0.00011807,2]
[361118663,1747277448493,-151.0,0.00011807,2]
[361118664,1747277448503,-160.067446,0.00011807,2]
[361118665,1747277448513,-401.37777104,0.00011807,2]
[361118666,1747277448522,-400.0,0.00011807,2]
[361118667,1747277448531,-401.55656685,0.00011807,2]
[361118668,1747277448541,-400.0,0.00011807,2]
[361118669,1747277448550,-402.01017003,0.00011807,2]
[361118670,1747277448560,-404.07,0.00011807,2]
[361118671,1747277448569,-400.0,0.00011807,2]
[361118672,1747277448579,-400.0,0.00011807,2]
[361118673,1747277448589,-401.35777209,0.00011807,2]
[361118674,1747277448599,-402.1961849,0.00011807,2]
[361118675,1747277448609,-490.48810018,0.00011807,2]
[361118676,1747277448618,-400.31556197,0.00011807,2]
[361118677,1747277448629,-658.54,0.00011807,2]
[361118678,1747277448638,-400.0,0.00011807,2]
[361118679,1747277448647,-932.62,0.00011807,2]
[361118680,1747277448657,-400.0,0.00011807,2]
[361118681,1747277448667,-413.58054555,0.00011807,2]
[361118682,1747277448676,-400.0,0.00011807,2]
[361118683,1747277448686,-400.0,0.00011807,2]
[361118684,1747277448696,-452.03936949,0.00011807,2]
[361118685,1747277448705,-400.0,0.00011807,2]
[361118686,1747277448715,-418.03771591,0.00011807,2]
[361118687,1747277448724,-657.92,0.00011807,2]
[361118688,1747277448734,-401.50680637,0.00011807,2]
[361118689,1747277448743,-436.47235566,0.00011807,2]
[361118690,1747277448753,-400.0,0.00011807,2]
[361118691,1747277448763,-426.85676426,0.00011807,2]
[361118692,1747277448773,-151.0,0.00011807,2]
[361118693,1747277448783,-151.0,0.00011807,2]
[361118694,1747277448793,-151.0,0.00011807,2]
[361118695,1747277448802,-151.0,0.00011807,2]
[361118696,1747277448812,-151.0,0.00011807,2]
[361118697,1747277448821,-290.45015,0.00011807,2]
[361118698,1747277448831,-400.0,0.00011807,2]
[361118699,1747277448840,-1345.63,0.00011807,2]
[361118700,1747277448850,-463.06,0.00011807,2]
[361118701,1747277448860,-402.16814291,0.00011807,2]
[361118702,1747277448869,-400.0,0.00011807,2]
[361118703,1747277448879,-400.0,0.00011807,2]
[361118704,1747277448889,-400.0,0.00011807,2]
[361118705,1747277448899,-642.73,0.00011807,2]
[361118706,1747277448908,-531.84,0.00011807,2]
[361118707,1747277448918,-1719.74,0.00011807,2]
[361118708,1747277448928,-400.0,0.00011807,2]
[361118709,1747277448937,-602.05,0.00011807,2]
[361118710,1747277448947,-1352.75,0.00011807,2]
[361118711,1747277448957,-400.0,0.00011807,2]
[361118712,1747277448967,-169.536723,0.00011807,2]
[361118713,1747277448976,-607.31,0.00011807,2]
[361118714,1747277448986,-468.57,0.00011807,2]
[361118715,1747277448997,-556.751481,0.00011807,2]
[361118716,1747277449007,-556.751481,0.00011807,2]
[361118717,1747277449016,-400.0,0.00011807,2]
[361118718,1747277449026,-556.751481,0.00011807,2]
[361118719,1747277449035,-555.21,0.00011807,2]
[361118720,1747277449045,-556.751481,0.00011807,2]
[361118721,1747277449055,-556.751481,0.00011807,2]
[361118722,1747277449064,-556.751481,0.00011807,2]
[361118723,1747277449074,-400.0,0.00011807,2]
[361118724,1747277449083,-400.0,0.00011807,2]
[361118725,1747277449093,-400.0,0.00011807,2]
[361118726,1747277449102,-775.38,0.00011807,2]
[361118727,1747277449112,-401.65283925,0.00011807,2]
[361118728,1747277449122,-400.0,0.00011807,2]
[361118729,1747277449131,-677.21,0.00011807,2]
[361118730,1747277449141,-400.0,0.00011807,2]
[361118731,1747277449150,-400.0,0.00011807,2]
[361118732,1747277449160,-400.0,0.00011807,2]
[361118733,1747277449169,-400.0,0.00011807,2]
[361118734,1747277449179,-3946.19,0.00011807,2]
[361118735,1747277449189,-500.0,0.00011807,2]
[361118736,1747277449199,-400.0,0.00011807,2]
[361118737,1747277449208,-3566.55,0.00011807,2]
[361118738,1747277449218,-510.35846539,0.00011807,2]
[361118739,1747277449227,-351.5711708,0.00011807,2]
[361118740,1747277449237,-411.82,0.00011807,2]
[361118741,1747277449246,-1611.49,0.00011807,2]
[361118742,1747277449255,-7623.875864,0.00011807,2]
[361118743,1747277449265,-7623.875864,0.00011807,2]
[361118744,1747277449276,-7623.875864,0.00011807,2]
[361118745,1747277449285,-7623.875864,0.00011807,2]
[361118746,1747277449295,-7623.875864,0.00011807,2]
[361118747,1747277449304,-7623.875864,0.00011807,2]
[361118748,1747277449314,-1504.99,0.00011807,2]
[361118750,1747277449324,-7623.875864,0.00011807,2]
[361118751,1747277449334,-7623.875864,0.00011807,2]
[361118752,1747277449343,-400.0,0.00011807,2]
[361118753,1747277449353,-7623.875864,0.00011807,2]
[361118754,1747277449362,-7623.875864,0.00011807,2]
[361118755,1747277449371,-7623.875864,0.00011807,2]
[361118756,1747277449383,-7623.875864,0.00011807,2]
[361118757,1747277449392,-155.347322,0.00011807,2]
[361118758,1747277449401,-7623.875864,0.00011807,2]
[361118759,1747277449411,-7623.875864,0.00011807,2]
[361118760,1747277449421,-7623.875864,0.00011807,2]
[361118761,1747277449430,-7623.875864,0.00011807,2]
[361118762,1747277449439,-151.0,0.00011807,2]
[361118763,1747277449449,-151.0,0.00011807,2]
[361118764,1747277449458,-151.0,0.00011807,2]
[361118765,1747277449467,-151.0,0.00011807,2]
[361118766,1747277449476,-227.312146,0.00011807,2]
[361118767,1747277449486,-835.34,0.00011807,2]
[361118768,1747277449495,-2259.88,0.00011807,2]
[361118769,1747277449505,-151.0,0.00011807,2]
[361118770,1747277449515,-151.0,0.00011807,2]
[361118771,1747277449525,-151.0,0.00011807,2]
[361118772,1747277449534,-171.439523,0.00011807,2]
[361118773,1747277449544,-400.0,0.00011807,2]
[361118774,1747277449553,-400.0,0.00011807,2]
[361118775,1747277449562,-151.0,0.00011807,2]
[361118776,1747277449571,-151.0,0.00011807,2]
[361118777,1747277449581,-151.0,0.00011807,2]
[361118778,1747277449591,-2216.92,0.00011807,2]
[361118779,1747277449600,-151.0,0.00011807,2]
[361118780,1747277449610,-151.0,0.00011807,2]
[361118781,1747277449619,-151.0,0.00011807,2]
[361118782,1747277449629,-151.0,0.00011807,2]
[361118783,1747277449638,-661.01,0.00011807,2]
[361118784,1747277449648,-5465.24115085,0.00011807,2]
[361118785,1747277449675,-1001.38105617,0.00011807,2]
[361118786,1747277449686,-2990.5,0.00011807,2]
[361118787,1747277449712,-3672.38779298,0.00011807,2]
[361118788,1747277449722,-456.73,0.00011807,2]
[361118789,1747277449925,-662.18,0.00011807,2]
[361118790,1747277449935,-872.29,0.00011807,2]
[361118791,1747277449945,-151.0,0.00011807,2]
[361118792,1747277449955,-229.670391,0.00011807,2]
[361118793,1747277449965,-151.0,0.00011807,2]
[361118794,1747277449974,-151.0,0.00011807,2]
[361118795,1747277449985,-151.0,0.00011807,2]
[361118796,1747277449994,-151.0,0.00011807,2]
[361118797,1747277450004,-18.90836381,0.00011807,2]
[361118798,1747277450016,-132.09163619,0.00011807,2]
[361118799,1747277450025,-540.45427696,0.00011807,2]
[361118800,1747277450038,-603.8,0.00011807,2]
[361118801,1747277450050,-2327.29573712,0.00011807,2]
[361118802,1747277450061,-825.06998592,0.00011807,2]
[361118803,1747277450070,-151.0,0.00011807,2]
[361118804,1747277450080,-151.0,0.00011807,2]
[361118805,1747277450089,-220.691423,0.00011807,2]
[361118806,1747277450098,-523.09310871,0.00011807,2]
[361118807,1747277450108,-400.0,0.00011807,2]
[361118808,1747277450117,-7658.35,0.00011807,2]
[361118809,1747277450127,-300.0,0.00011808,2]
[361118810,1747277450136,-339.70892039,0.00011808,2]
[361118811,1747277450145,-158.899856,0.00011808,2]
[361118812,1747277450154,-151.0,0.00011808,2]
[361118813,1747277450167,-151.0,0.00011808,2]
[361118814,1747277450176,-212.090586,0.00011808,2]
[361118815,1747277450186,-151.0,0.00011808,2]
[361118816,1747277450195,-151.0,0.00011808,2]
[361118817,1747277450205,-3394.830233,0.00011808,2]
[361118818,1747277450215,-3394.830233,0.00011808,2]
[361118819,1747277450224,-679.642295,0.00011808,2]
[361118820,1747277450236,-261.656694,0.00011808,2]
[361118821,1747277450246,-29.11098361,0.00011808,2]
[361118822,1747277450257,-673.9999555,0.00011808,2]
[361118823,1747277450269,-238.18804989,0.00011808,2]
[361118824,1747277450278,-556.751481,0.00011808,2]
[361118825,1747277450288,-556.751481,0.00011808,2]
[361118826,1747277450298,-151.0,0.00011808,2]
[361118827,1747277450307,-151.0,0.00011808,2]
[361118828,1747277450317,-509.24938864,0.00011809,2]
[361118829,1747277450326,-500.0,0.00011809,2]
[361118830,1747277450337,-400.0,0.00011809,2]
[361118831,1747277450346,-314.29398997,0.00011809,2]
[361118832,1747277450356,-167.72087922,0.00011809,2]
[361118833,1747277450366,-405.89004917,0.00011809,2]
[361118834,1747277450378,-402.72687359,0.00011809,2]
[361118835,1747277450387,-403.05045315,0.00011809,2]
[361118836,1747277450396,-400.0,0.00011809,2]
[361118837,1747277450405,-503.77293493,0.00011809,2]
[361118838,1747277450416,-403.19259088,0.00011809,2]
[361118839,1747277450425,-503.02765882,0.00011809,2]
[361118840,1747277450434,-403.18618766,0.00011809,2]
[361118841,1747277450445,-507.39669017,0.00011809,2]
[361118842,1747277450456,-400.34304971,0.00011809,2]
[361118843,1747277450467,-402.72167839,0.00011809,2]
[361118844,1747277450477,-401.50725354,0.00011809,2]
[361118845,1747277450486,-400.51189665,0.00011809,2]
[361118846,1747277450497,-542.97194177,0.00011809,2]
[361118847,1747277450508,-505.7581524,0.00011809,2]
[361118848,1747277450518,-151.0,0.00011809,2]
[361118849,1747277450528,-171.377861,0.00011809,2]
[361118850,1747277450537,-171.377861,0.00011809,2]
[361118851,1747277450548,-154.536879,0.00011809,2]
[361118852,1747277450559,-400.0,0.00011809,2]
[361118853,1747277450569,-151.0,0.00011809,2]
[361118854,1747277450578,-486.81,0.00011809,2]
[361118855,1747277450588,-537.15878803,0.00011809,2]
[361118856,1747277450598,-369.30576651,0.00011809,2]
[361118857,1747277450610,-66.00423349,0.00011809,2]
[361118858,1747277450620,-509.67216368,0.00011809,2]
[361118859,1747277450629,-400.0,0.00011809,2]
[361118860,1747277450639,-400.0,0.00011809,2]
[361118861,1747277450648,-400.0,0.00011809,2]
[361118862,1747277450658,-400.0,0.00011809,2]
[361118863,1747277450668,-400.0,0.00011809,2]
[361118864,1747277450679,-400.0,0.00011809,2]
[361118865,1747277450688,-65.01827016,0.00011809,2]
[361118866,1747277450971,-334.98172984,0.00011809,2]
[361118867,1747277450981,-400.0,0.00011809,2]
[361118868,1747277450991,-400.0,0.00011809,2]
[361118869,1747277451000,-400.0,0.00011809,2]
[361118870,1747277451010,-400.0,0.00011809,2]
[361118871,1747277451020,-400.0,0.00011809,2]
[361118872,1747277451029,-974.14,0.00011809,2]
[361118873,1747277451040,-400.0,0.00011809,2]
[361118874,1747277451050,-172.113071,0.00011809,2]
[361118875,1747277451060,-400.0,0.00011809,2]
[361118876,1747277451069,-400.0,0.00011809,2]
[361118877,1747277451079,-400.0,0.00011809,2]
[361118878,1747277451088,-463.50515218,0.00011809,2]
[361118879,1747277451098,-151.0,0.00011809,2]
[361118880,1747277451107,-151.0,0.00011809,2]
[361118881,1747277451116,-151.0,0.00011809,2]
[361118882,1747277451126,-151.0,0.00011809,2]
[361118883,1747277451136,-59.02262517,0.00011809,2]
[361118884,1747277451162,-340.97737483,0.00011809,2]
[361118885,1747277451171,-166.93262517,0.00011809,2]
[361118886,1747277451187,-233.06737483,0.00011809,2]
[361118887,1747277451196,-400.0,0.00011809,2]
[361118888,1747277451206,-3394.830233,0.00011809,2]
[361118889,1747277451216,-3394.830233,0.00011809,2]
[361118890,1747277451226,-941.298989,0.00011809,2]
[361118891,1747277451236,-941.298989,0.00011809,2]
[361118892,1747277451246,-941.298989,0.00011809,2]
[361118893,1747277451257,-941.298989,0.00011809,2]
[361118894,1747277451266,-941.298989,0.00011809,2]
[361118895,1747277451276,-941.298989,0.00011809,2]
[361118896,1747277451286,-400.0,0.00011809,2]
[361118897,1747277451296,-400.0,0.00011809,2]
[361118898,1747277451305,-400.0,0.00011809,2]
[361118899,1747277451315,-400.0,0.00011809,2]
[361118900,1747277451324,-400.0,0.00011809,2]
[361118901,1747277451334,-596.86,0.00011809,2]
[361118902,1747277451343,-704.53,0.00011809,2]
[361118903,1747277451353,-846.59,0.00011809,2]
[361118904,1747277451362,-400.0,0.00011809,2]
[361118905,1747277451373,-400.0,0.00011809,2]
[361118906,1747277451385,-7641.62,0.00011809,2]
[361118907,1747277451395,-555.83,0.00011809,2]
[361118908,1747277451405,-490.81874006,0.00011809,2]
[361118909,1747277451416,-400.0,0.00011809,2]
[361118910,1747277451426,-400.0,0.00011809,2]
[361118911,1747277451436,-805.67,0.00011809,2]
[361118912,1747277451446,-449.3,0.00011809,2]
[361118913,1747277451455,-659.07,0.00011809,2]
[361118914,1747277451466,-400.0,0.00011809,2]
[361118915,1747277451476,-400.0,0.00011809,2]
[361118916,1747277451486,-172.58986523,0.00011809,2]
[361118917,1747277451497,-1279.38,0.00011809,2]
[361118918,1747277451506,-400.0,0.00011809,2]
[361118919,1747277451516,-400.0,0.00011809,2]
[361118920,1747277451526,-791.62,0.00011809,2]
[361118921,1747277451535,-3285.07,0.00011809,2]
[361118922,1747277451545,-556.751481,0.00011809,2]
[361118923,1747277451555,-470.19,0.00011809,2]
[361118924,1747277451566,-556.751481,0.00011809,2]
[361118925,1747277451577,-1148.65,0.00011809,2]
[361118926,1747277451587,-400.0,0.00011809,2]
[361118927,1747277451597,-988.03,0.00011809,2]
[361118928,1747277451607,-400.0,0.00011809,2]
[361118929,1747277451617,-400.0,0.00011809,2]
[361118930,1747277451626,-400.0,0.00011809,2]
[361118931,1747277451636,-780.88,0.00011809,2]
[361118932,1747277451645,-331.96925788,0.00011809,2]
[361118933,1747277451982,-68.03074212,0.00011809,2]
[361118934,1747277451992,-400.0,0.00011809,2]
[361118935,1747277452003,-500.0,0.00011809,2]
[361118936,1747277452014,-31.96925788,0.00011809,2]
[361118937,1747277452026,-468.03074212,0.00011809,2]
[361118938,1747277452035,-500.0,0.00011809,2]
[361118939,1747277452045,-541.14,0.00011809,2]
[361118940,1747277452055,-630.34,0.00011809,2]
[361118941,1747277452064,-1218.56,0.00011809,2]
[361118942,1747277452073,-2451.71809047,0.00011809,2]
[361118943,1747277452089,-1849.10000001,0.00011809,2]
[361118944,1747277452100,-1223.6681103,0.00011809,2]
[361118945,1747277539591,150.0,0.0001102,7]
[361118946,1747277726928,151.0,0.00027397,120]
[361118947,1747278032568,225.41,0.00027,120]
[361118948,1747278217212,397.87,8.849e-05,2]
[361118949,1747278398580,150.0,0.000135,5]
[361118950,1747278549919,150.0,0.00010485,7]
[361118951,1747278572018,450.0,0.0001,2]
[361118954,1747278631953,-1000.0,0.00010483,2]
[361118955,1747278631963,-200.0,0.00010491,2]
[361118956,1747278631973,-250.0,0.00010499,2]
[361118957,1747278631983,-200.0,0.00010569,2]
[361118958,1747278631994,-300.0,0.0001062,2]
[361118959,1747278632003,-1200.0,0.0001062,2]
[361118960,1747278632013,-300.0,0.0001062,2]
[361118961,1747278632023,-200.0,0.00010621,2]
[361118962,1747278632032,-895.86386558,0.00010621,2]
[361118963,1747278632042,-5119.13613442,0.00010621,2]
[361118964,1747278632129,-937.64387151,0.00010621,2]
[361118967,1747278632192,-1120.72009883,0.00010621,2]
[361118969,1747278632204,-1022.87989524,0.00010621,2]
[361118971,1747278632214,-1903.06,0.00010761,2]
[361118973,1747278632224,-181.37,0.00010782,2]
[361118975,1747278632234,-174.63,0.00010791,2]
[361118977,1747278632243,-437.4,0.00010881,2]
[361118979,1747278632252,-154.12714501,0.00010881,2]
[361118982,1747278637907,-345.87285499,0.00010881,2]
[361118983,1747278637919,-500.0,0.00010881,2]
[361118984,1747278637928,-378.57720537,0.00010881,2]
[361118985,1747278637939,-169.58,0.00010895,2]
[361118986,1747278637948,-232.09,0.00010976,2]
[361118987,1747278637958,-3235.28,0.00011,2]
[361118988,1747278637967,-3235.28,0.000111,2]
[361118989,1747278637978,-397.87,0.00011112,2]
[361118990,1747278637987,-358.44455218,0.000112,2]
[361118991,1747278638064,-284.7359996,0.000112,2]
[361118996,1747278640256,-2549.05889236,0.000112,2]
[361118999,1747278643082,-43.04055586,0.000112,2]
[361119000,1747278643092,-207.4,0.0001122,2]
[361119001,1747278643102,-320.13,0.0001126,2]
[361119002,1747278643111,-299.82,0.0001126,2]
[361119003,1747278643121,-452.72,0.0001126,2]
[361119004,1747278643131,-452.72,0.0001126,2]
[361119005,1747278643139,-300.0,0.00011278,2]
[361119006,1747278643150,-150.12,0.00011378,2]
[361119007,1747278643159,-452.72,0.000114,2]
[361119008,1747278643170,-3235.28,0.000114,2]
[361119009,1747278643180,-200.0,0.00011531,2]
[361119010,1747278643190,-162.63,0.00011534,2]
[361119011,1747278643200,-150.18,0.00011534,2]
[361119012,1747278643210,-761.45,0.00011578,2]
[361119013,1747278643219,-1157.11,0.00011631,2]
[361119014,1747278643229,-930.55189734,0.00011631,2]
[361119017,1747278643302,-226.55810266,0.00011631,2]
[361119018,1747278643313,-846.16475505,0.00011672,2]
[361119019,1747278643323,-200.0,0.00011682,2]
[361119020,1747278643334,-150.0,0.00011683,2]
[361119021,1747278643345,-1332.0,0.00011683,2]
[361119022,1747278643355,-3235.28,0.000117,2]
[361119023,1747278643365,-150.83,0.000117,2]
[361119024,1747278643373,-300.0,0.000117,2]
[361119025,1747278643383,-150.18,0.000117,2]
[361119026,1747278643393,-352.94,0.000117,2]
[361119027,1747278643402,-357.77,0.000117,2]
[361119028,1747278643412,-152.1,0.000117,2]
[361119029,1747278643422,-150.0,0.000117,2]
[361119030,1747278643432,-452.72,0.000117,2]
[361119031,1747278643442,-162.63,0.000117,2]
[361119032,1747278643451,-459.12,0.000117,2]
[361119034,1747278643461,-352.94,0.000117,2]
[361119036,1747278643471,-164.86,0.000117,2]
[361119038,1747278643480,-150.0,0.000117,2]
[361119039,1747278643489,-150.18,0.000117,2]
[361119040,1747278643499,-162.63,0.000117,2]
[361119041,1747278643509,-162.63,0.000117,2]
[361119042,1747278643519,-150.18,0.000117,2]
[361119043,1747278643529,-345.53,0.000117,2]
[361119044,1747278643539,-351.4,0.000117,2]
[361119045,1747278643548,-3300.0,0.000117,4]
[361119046,1747278643558,-5416.29832109,0.00011703,2]
[361119047,1747278643568,-10879.85421777,0.00011703,2]
[361119048,1747278643578,-177.10590979,0.00011703,2]
[361119049,1747278643587,-299.61,0.00011708,2]
[361119050,1747278643596,-150.0,0.00011708,2]
[361119051,1747278643605,-1000.0,0.00011793,2]
[361119052,1747278643614,-151.0,0.00011795,2]
[361119053,1747278643624,-155.0,0.00011795,2]
[361119054,1747278643633,-719.52358209,0.00011795,2]
[361119055,1747278643642,-352.94,0.000118,2]
[361119056,1747278643652,-6700.0,0.000118,4]
[361119057,1747278643661,-454.57381994,0.00011801,2]
[361119058,1747278643672,-400.0,0.00011801,2]
[361119059,1747278643682,-400.0,0.00011801,2]
[361119060,1747278643691,-400.0,0.00011801,2]
[361119061,1747278643700,-400.0,0.00011801,2]
[361119062,1747278643709,-400.0,0.00011801,2]
[361119063,1747278643718,-924.04,0.00011801,2]
[361119064,1747278643727,-400.0,0.00011801,2]
[361119065,1747278643736,-400.0,0.00011801,2]
[361119066,1747278643745,-400.0,0.00011801,2]
[361119067,1747278643755,-500.09,0.00011801,2]
[361119068,1747278643763,-449.78,0.00011801,2]
[361119069,1747278643773,-1389.24,0.00011801,2]
[361119070,1747278643782,-400.0,0.00011801,2]
[361119071,1747278643791,-400.0,0.00011801,2]
[361119072,1747278643800,-400.0,0.00011801,2]
[361119073,1747278643809,-400.0,0.00011801,2]
[361119074,1747278643818,-566.73,0.00011801,2]
[361119075,1747278643827,-674.15,0.00011801,2]
[361119076,1747278643836,-400.0,0.00011801,2]
[361119077,1747278643845,-400.0,0.00011801,2]
[361119078,1747278643856,-400.0,0.00011801,2]
[361119079,1747278643866,-400.0,0.00011801,2]
[361119080,1747278643875,-516.53,0.00011801,2]
[361119081,1747278643884,-400.0,0.00011801,2]
[361119082,1747278643893,-400.0,0.00011801,2]
[361119083,1747278643903,-400.0,0.00011801,2]
[361119084,1747278643912,-400.0,0.00011802,2]
[361119085,1747278643921,-400.0,0.00011802,2]
[361119086,1747278643932,-400.0,0.00011802,2]
[361119087,1747278643942,-400.0,0.00011802,2]
[361119088,1747278643952,-400.0,0.00011802,2]
[361119089,1747278643961,-400.0,0.00011802,2]
[361119090,1747278643971,-400.0,0.00011802,2]
[361119091,1747278643980,-443.16242834,0.00011802,2]
[361119092,1747278643990,-400.0,0.00011802,2]
[361119093,1747278643999,-392.46349566,0.00011802,2]
[361119094,1747278644009,-400.0,0.00011802,2]
[361119095,1747278644018,-400.0,0.00011802,2]
[361119096,1747278644027,-400.0,0.00011802,2]
[361119097,1747278644037,-400.0,0.00011802,2]
[361119098,1747278644046,-400.0,0.00011802,2]
[361119099,1747278644056,-649.37,0.00011802,2]
[361119100,1747278644065,-400.0,0.00011802,2]
[361119101,1747278644075,-400.0,0.00011802,2]
[361119102,1747278644084,-406.9244066,0.00011802,2]
[361119103,1747278644093,-400.0,0.00011802,2]
[361119104,1747278644103,-400.0,0.00011802,2]
[361119105,1747278644112,-400.0,0.00011802,2]
[361119106,1747278644122,-242.07167522,0.00011802,2]
[361119107,1747278644131,-400.0,0.00011802,2]
[361119108,1747278644141,-418.09851851,0.00011802,2]
[361119109,1747278644150,-400.0,0.00011802,2]
[361119110,1747278644160,-403.52329466,0.00011802,2]
[361119111,1747278644169,-418.36638823,0.00011802,2]
[361119112,1747278644179,-558.42,0.00011802,2]
[361119113,1747278644189,-435.64779885,0.00011802,2]
[361119114,1747278644198,-414.05346114,0.00011802,2]
[361119115,1747278644207,-433.84,0.00011802,2]
[361119116,1747278644218,-250.0,0.00011802,2]
[361119117,1747278644228,-226.04815169,0.00011802,2]
[361119118,1747278644238,-400.0,0.00011802,2]
[361119119,1747278644248,-403.51837113,0.00011802,2]
[361119120,1747278644258,-409.58354168,0.00011802,2]
[361119121,1747278644267,-400.0,0.00011802,2]
[361119122,1747278644276,-420.48051426,0.00011802,2]
[361119123,1747278644286,-425.89,0.00011802,2]
[361119124,1747278644295,-533.38,0.00011802,2]
[361119125,1747278644304,-424.43868566,0.00011802,2]
[361119126,1747278644313,-400.0,0.00011802,2]
[361119127,1747278644322,-400.0,0.00011802,2]
[361119128,1747278644332,-10751.065018,0.00011802,2]
[361119129,1747278644341,-211.793533,0.00011802,2]
[361119130,1747278644350,-425.52316227,0.00011802,2]
[361119131,1747278644360,-422.86937888,0.00011802,2]
[361119132,1747278644370,-417.23,0.00011802,2]
[361119133,1747278644379,-400.0,0.00011802,2]
[361119134,1747278644388,-402.45855726,0.00011802,2]
[361119135,1747278644397,-412.16597245,0.00011802,2]
[361119136,1747278644407,-400.0,0.00011802,2]
[361119137,1747278644415,-400.0,0.00011802,2]
[361119138,1747278644426,-400.0,0.00011802,2]
[361119139,1747278644436,-400.0,0.00011802,2]
[361119140,1747278644446,-400.0,0.00011802,2]
[361119141,1747278644456,-400.0,0.00011802,2]
[361119142,1747278644465,-400.0,0.00011802,2]
[361119143,1747278644476,-400.0,0.00011802,2]
[361119144,1747278644485,-419.49545189,0.00011802,2]
[361119145,1747278644495,-400.0,0.00011802,2]
[361119146,1747278644504,-400.0,0.00011802,2]
[361119147,1747278644513,-400.0,0.00011802,2]
[361119148,1747278644522,-404.02964506,0.00011802,2]
[361119149,1747278644531,-400.0,0.00011802,2]
[361119150,1747278644541,-400.0,0.00011802,2]
[361119151,1747278644550,-403.4273207,0.00011802,2]